[Event "January 9 Late 2024"]
[Site "https://www.chess.com"]
[Date "2024.01.09"]
[Round "11"]
[White "Naroditsky, Daniel"]
[Black "Svane, Rasmus"]
[Result "1/2-1/2"]
[Board "9"]
[TimeControl "180+1"]
[WhiteFideId "2026961"]
[BlackFideId "4657101"]
[WhiteElo "3140"]
[BlackElo "3001"]
[WhiteTeam "USA"]
[BlackTeam "GER"]
[WhiteClock "0:00:04"]
[BlackClock "0:00:04"]

1. d4 {[%clk 0:03:00]}  d5 {[%clk 0:02:54]} 2. Nc3 {[%clk 0:03:00]}  Nf6 {[%clk 0:02:53]} 3. Bf4 {[%clk 0:03:01]}  c5 {[%clk 0:02:52]} 4. Nf3 {[%clk 0:03:01]}  Bg4 {[%clk 0:02:33]} 5. dxc5 {[%clk 0:02:49]}  e6 {[%clk 0:02:22]} 6. Ne5 {[%clk 0:02:47]}  Bxc5 {[%clk 0:02:20]} 7. Nxg4 {[%clk 0:02:44]}  Nxg4 {[%clk 0:02:19]} 8. e3 {[%clk 0:02:43]}  Nf6 {[%clk 0:02:13]} 9. Bd3 {[%clk 0:02:41]}  Bd6 {[%clk 0:01:47]} 10. Bxd6 {[%clk 0:02:31]}  Qxd6 {[%clk 0:01:48]} 11. O-O {[%clk 0:02:31]}  O-O {[%clk 0:01:48]} 12. e4 {[%clk 0:02:32]}  Nc6 {[%clk 0:01:42]} 13. exd5 {[%clk 0:02:30]}  exd5 {[%clk 0:01:40]} 14. Re1 {[%clk 0:02:24]}  Rfe8 {[%clk 0:01:39]} 15. Qf3 {[%clk 0:02:17]}  Ne5 {[%clk 0:01:32]} 16. Qg3 {[%clk 0:02:15]}  Nh5 {[%clk 0:01:31]} 17. Qh3 {[%clk 0:01:54]}  Nf6 {[%clk 0:01:27]} 18. Bf1 {[%clk 0:01:43]}  Qb6 {[%clk 0:01:20]} 19. Na4 {[%clk 0:01:07]}  Qd4 {[%clk 0:01:11]} 20. Nc3 {[%clk 0:00:59]}  Qb6 {[%clk 0:01:10]} 21. Na4 {[%clk 0:01:00]}  Qd4 {[%clk 0:01:10]} 22. Nc3 {[%clk 0:01:00]}  Qb4 {[%clk 0:01:00]} 23. Qg3 {[%clk 0:00:45]}  Nc6 {[%clk 0:00:54]} 24. Rxe8+ {[%clk 0:00:26]}  Rxe8 {[%clk 0:00:55]} 25. Rb1 {[%clk 0:00:22]}  d4 {[%clk 0:00:48]} 26. Ne2 {[%clk 0:00:23]}  Qd2 {[%clk 0:00:45]} 27. Qd3 {[%clk 0:00:22]}  Qxd3 {[%clk 0:00:40]} 28. cxd3 {[%clk 0:00:23]}  Nd7 {[%clk 0:00:33]} 29. Rc1 {[%clk 0:00:20]}  g6 {[%clk 0:00:33]} 30. a3 {[%clk 0:00:18]}  a5 {[%clk 0:00:33]} 31. Nf4 {[%clk 0:00:13]}  Re5 {[%clk 0:00:32]} 32. h4 {[%clk 0:00:09]}  h6 {[%clk 0:00:26]} 33. g3 {[%clk 0:00:09]}  Nc5 {[%clk 0:00:25]} 34. Rd1 {[%clk 0:00:04]}  g5 {[%clk 0:00:23]} 35. hxg5 {[%clk 0:00:05]}  hxg5 {[%clk 0:00:23]} 36. Nh5 {[%clk 0:00:06]}  Kh7 {[%clk 0:00:22]} 37. g4 {[%clk 0:00:04]}  Kg6 {[%clk 0:00:22]} 38. Ng3 {[%clk 0:00:05]}  Ne6 {[%clk 0:00:19]} 39. Bg2 {[%clk 0:00:04]}  Rb5 {[%clk 0:00:19]} 40. Be4+ {[%clk 0:00:04]}  Kf6 {[%clk 0:00:20]} 41. Rd2 {[%clk 0:00:05]}  Nf4 {[%clk 0:00:20]} 42. Bxc6 {[%clk 0:00:02]}  bxc6 {[%clk 0:00:20]} 43. Ne4+ {[%clk 0:00:03]}  Kg6 {[%clk 0:00:20]} 44. f3 {[%clk 0:00:03]}  Rb3 {[%clk 0:00:16]} 45. Nc5 {[%clk 0:00:04]}  Rb5 {[%clk 0:00:16]} 46. Rc2 {[%clk 0:00:04]}  f5 {[%clk 0:00:15]} 47. Kf1 {[%clk 0:00:03]}  fxg4 {[%clk 0:00:15]} 48. fxg4 {[%clk 0:00:04]}  Kf6 {[%clk 0:00:15]} 49. Ne4+ {[%clk 0:00:04]}  Ke7 {[%clk 0:00:15]} 50. Nf2 {[%clk 0:00:03]}  Kd7 {[%clk 0:00:13]} 51. Rd2 {[%clk 0:00:03]}  Ke6 {[%clk 0:00:12]} 52. Rc2 {[%clk 0:00:04]}  Kd5 {[%clk 0:00:12]} 53. Ke1 {[%clk 0:00:04]}  Rb8 {[%clk 0:00:12]} 54. Kd2 {[%clk 0:00:03]}  Rh8 {[%clk 0:00:12]} 55. Ne4 {[%clk 0:00:02]}  Rh2+ {[%clk 0:00:12]} 56. Kd1 {[%clk 0:00:03]}  Rh1+ {[%clk 0:00:11]} 57. Kd2 {[%clk 0:00:04]}  Rh2+ {[%clk 0:00:09]} 58. Kd1 {[%clk 0:00:04]}  Rh1+ {[%clk 0:00:04]} 59. Kd2 {[%clk 0:00:04]}  Rh2+ {[%clk 0:00:04]} 1/2-1/2

[Event "January 9 Late 2024"]
[Site "https://www.chess.com"]
[Date "2024.01.09"]
[Round "11"]
[White "Yoo, Christopher Woojin"]
[Black "Bluebaum, Matthias"]
[Result "1-0"]
[Board "10"]
[TimeControl "180+1"]
[WhiteFideId "30909694"]
[BlackFideId "24651516"]
[WhiteElo "2984"]
[BlackElo "3078"]
[WhiteTeam "USA"]
[BlackTeam "GER"]
[WhiteClock "0:00:03"]
[BlackClock "0:00:02"]

1. e4 {[%clk 0:03:00]}  e6 {[%clk 0:03:00]} 2. d3 {[%clk 0:03:00]}  d5 {[%clk 0:03:00]} 3. Nd2 {[%clk 0:03:00]}  Nf6 {[%clk 0:03:01]} 4. Ngf3 {[%clk 0:03:01]}  Be7 {[%clk 0:03:02]} 5. g3 {[%clk 0:03:01]}  a5 {[%clk 0:03:02]} 6. a4 {[%clk 0:02:58]}  Nc6 {[%clk 0:02:56]} 7. Bg2 {[%clk 0:02:57]}  dxe4 {[%clk 0:02:51]} 8. dxe4 {[%clk 0:02:58]}  e5 {[%clk 0:02:51]} 9. O-O {[%clk 0:02:57]}  O-O {[%clk 0:02:52]} 10. Qe2 {[%clk 0:02:50]}  b6 {[%clk 0:02:51]} 11. Nc4 {[%clk 0:02:36]}  Ba6 {[%clk 0:02:50]} 12. c3 {[%clk 0:02:26]}  Bc5 {[%clk 0:02:49]} 13. b3 {[%clk 0:01:15]}  Qe7 {[%clk 0:02:45]} 14. Ne1 {[%clk 0:01:03]}  Rad8 {[%clk 0:02:41]} 15. Nd3 {[%clk 0:01:02]}  Nd7 {[%clk 0:02:28]} 16. Nxc5 {[%clk 0:00:53]}  Nxc5 {[%clk 0:02:29]} 17. Ba3 {[%clk 0:00:53]}  Nb8 {[%clk 0:02:17]} 18. b4 {[%clk 0:00:47]}  Bxc4 {[%clk 0:01:37]} 19. Qxc4 {[%clk 0:00:41]}  Nb7 {[%clk 0:01:14]} 20. bxa5 {[%clk 0:00:37]}  Nd6 {[%clk 0:01:03]} 21. axb6 {[%clk 0:00:32]}  cxb6 {[%clk 0:01:01]} 22. Rfd1 {[%clk 0:00:32]}  Qf6 {[%clk 0:00:51]} 23. Qb4 {[%clk 0:00:31]}  Nc8 {[%clk 0:00:51]} 24. Qb5 {[%clk 0:00:24]}  Rfe8 {[%clk 0:00:50]} 25. Rd5 {[%clk 0:00:19]}  Na7 {[%clk 0:00:47]} 26. Qb3 {[%clk 0:00:16]}  h5 {[%clk 0:00:43]} 27. Rad1 {[%clk 0:00:16]}  h4 {[%clk 0:00:43]} 28. Rd6 {[%clk 0:00:12]}  Rxd6 {[%clk 0:00:36]} 29. Rxd6 {[%clk 0:00:12]}  Qg5 {[%clk 0:00:36]} 30. Bh3 {[%clk 0:00:12]}  Nbc6 {[%clk 0:00:26]} 31. Kg2 {[%clk 0:00:07]}  Qh5 {[%clk 0:00:15]} 32. Rd7 {[%clk 0:00:03]}  Nc8 {[%clk 0:00:14]} 33. Rc7 {[%clk 0:00:03]}  N6e7 {[%clk 0:00:12]} 34. Qb5 {[%clk 0:00:03]}  f6 {[%clk 0:00:11]} 35. Qd7 {[%clk 0:00:02]}  Kh8 {[%clk 0:00:10]} 36. Bg4 {[%clk 0:00:03]}  Qg6 {[%clk 0:00:11]} 37. Bf3 {[%clk 0:00:03]}  hxg3 {[%clk 0:00:10]} 38. hxg3 {[%clk 0:00:03]}  Kg8 {[%clk 0:00:09]} 39. Qe6+ {[%clk 0:00:04]}  Kf8 {[%clk 0:00:09]} 40. Bg4 {[%clk 0:00:03]}  Qxe4+ {[%clk 0:00:09]} 41. Bf3 {[%clk 0:00:03]}  Qd3 {[%clk 0:00:08]} 42. Bd5 {[%clk 0:00:04]}  Nd6 {[%clk 0:00:02]} 43. Qg8+ {[%clk 0:00:03]}  Nxg8 {[%clk 0:00:02]} 44. Rf7# {[%clk 0:00:03]} 1-0

[Event "January 9 Late 2024"]
[Site "https://www.chess.com"]
[Date "2024.01.09"]
[Round "11"]
[White "Schroeder, Jan-Christian"]
[Black "Pranav, V"]
[Result "0-1"]
[Board "11"]
[TimeControl "180+1"]
[WhiteFideId "24662259"]
[BlackFideId "25060783"]
[WhiteElo "2868"]
[BlackElo "3046"]
[WhiteTeam "GER"]
[BlackTeam "IND"]
[WhiteClock "0:00:06"]
[BlackClock "0:00:03"]

1. e4 {[%clk 0:03:00]}  e5 {[%clk 0:02:57]} 2. Nf3 {[%clk 0:03:00]}  Nc6 {[%clk 0:02:58]} 3. Bc4 {[%clk 0:03:01]}  Nf6 {[%clk 0:02:58]} 4. d3 {[%clk 0:03:02]}  h6 {[%clk 0:02:58]} 5. c3 {[%clk 0:03:00]}  d6 {[%clk 0:02:59]} 6. a4 {[%clk 0:02:59]}  g6 {[%clk 0:02:58]} 7. Nbd2 {[%clk 0:02:58]}  Bg7 {[%clk 0:02:58]} 8. Nf1 {[%clk 0:02:58]}  O-O {[%clk 0:02:58]} 9. Ng3 {[%clk 0:02:58]}  Be6 {[%clk 0:02:56]} 10. Bxe6 {[%clk 0:02:57]}  fxe6 {[%clk 0:02:57]} 11. O-O {[%clk 0:02:57]}  Kh7 {[%clk 0:02:56]} 12. b4 {[%clk 0:02:57]}  a6 {[%clk 0:02:53]} 13. Be3 {[%clk 0:02:55]}  Ne7 {[%clk 0:02:48]} 14. h3 {[%clk 0:02:53]}  g5 {[%clk 0:02:45]} 15. Bxg5 {[%clk 0:02:39]}  hxg5 {[%clk 0:02:41]} 16. Nxg5+ {[%clk 0:02:40]}  Kg8 {[%clk 0:02:41]} 17. Nxe6 {[%clk 0:02:40]}  Qd7 {[%clk 0:02:42]} 18. Qb3 {[%clk 0:02:27]}  Kh7 {[%clk 0:02:31]} 19. f4 {[%clk 0:02:07]}  exf4 {[%clk 0:02:26]} 20. Rxf4 {[%clk 0:02:06]}  Bh6 {[%clk 0:02:20]} 21. Rf3 {[%clk 0:01:58]}  d5 {[%clk 0:02:04]} 22. Nxf8+ {[%clk 0:01:54]}  Rxf8 {[%clk 0:02:04]} 23. Raf1 {[%clk 0:01:54]}  Qd6 {[%clk 0:02:01]} 24. exd5 {[%clk 0:01:35]}  Rg8 {[%clk 0:01:49]} 25. Ne4 {[%clk 0:01:15]}  Nxe4 {[%clk 0:01:47]} 26. dxe4 {[%clk 0:01:16]}  Qg6 {[%clk 0:01:44]} 27. R1f2 {[%clk 0:01:08]}  Qxe4 {[%clk 0:01:42]} 28. Rf7+ {[%clk 0:01:08]}  Kh8 {[%clk 0:01:28]} 29. Qd1 {[%clk 0:01:04]}  Qe5 {[%clk 0:01:06]} 30. Qd3 {[%clk 0:00:55]}  Ng6 {[%clk 0:01:01]} 31. R2f6 {[%clk 0:00:53]}  Qe1+ {[%clk 0:00:37]} 32. Kh2 {[%clk 0:00:53]}  Qe5+ {[%clk 0:00:34]} 33. g3 {[%clk 0:00:52]}  Qg5 {[%clk 0:00:20]} 34. Qd4 {[%clk 0:00:46]}  Bg7 {[%clk 0:00:18]} 35. Rf5 {[%clk 0:00:30]}  Qxf5 {[%clk 0:00:11]} 36. Qxg7+ {[%clk 0:00:22]}  Rxg7 {[%clk 0:00:12]} 37. Rxf5 {[%clk 0:00:22]}  Re7 {[%clk 0:00:12]} 38. h4 {[%clk 0:00:21]}  Kg7 {[%clk 0:00:12]} 39. h5 {[%clk 0:00:18]}  Re5 {[%clk 0:00:09]} 40. Rxe5 {[%clk 0:00:13]}  Nxe5 {[%clk 0:00:10]} 41. Kh3 {[%clk 0:00:14]}  Nc4 {[%clk 0:00:09]} 42. g4 {[%clk 0:00:14]}  Ne3 {[%clk 0:00:09]} 43. d6 {[%clk 0:00:08]}  cxd6 {[%clk 0:00:09]} 44. g5 {[%clk 0:00:08]}  Nd5 {[%clk 0:00:09]} 45. Kg4 {[%clk 0:00:09]}  Nxc3 {[%clk 0:00:09]} 46. Kf5 {[%clk 0:00:10]}  d5 {[%clk 0:00:06]} 47. Ke5 {[%clk 0:00:10]}  Nxa4 {[%clk 0:00:04]} 48. Kxd5 {[%clk 0:00:10]}  Nc3+ {[%clk 0:00:04]} 49. Kc5 {[%clk 0:00:10]}  Na2 {[%clk 0:00:04]} 50. b5 {[%clk 0:00:08]}  a5 {[%clk 0:00:02]} 51. Kc4 {[%clk 0:00:05]}  b6 {[%clk 0:00:02]} 52. Kd3 {[%clk 0:00:04]}  Nb4+ {[%clk 0:00:02]} 53. Kc4 {[%clk 0:00:04]}  Nc2 {[%clk 0:00:02]} 54. Kd3 {[%clk 0:00:04]}  Na3 {[%clk 0:00:02]} 55. Kd4 {[%clk 0:00:04]}  Nxb5+ {[%clk 0:00:03]} 56. Kd5 {[%clk 0:00:05]}  Nc3+ {[%clk 0:00:03]} 57. Kc6 {[%clk 0:00:06]}  Ne4 {[%clk 0:00:03]} 0-1

[Event "January 9 Late 2024"]
[Site "https://www.chess.com"]
[Date "2024.01.09"]
[Round "11"]
[White "Van Foreest, Jorden"]
[Black "Troff, Kayden"]
[Result "1-0"]
[Board "12"]
[TimeControl "180+1"]
[WhiteFideId "1039784"]
[BlackFideId "2047896"]
[WhiteElo "3042"]
[BlackElo "2850"]
[WhiteTeam "NED"]
[BlackTeam "USA"]
[WhiteClock "0:00:05"]
[BlackClock "0:00:00"]

1. c4 {[%clk 0:03:00]}  Nf6 {[%clk 0:02:57]} 2. Nc3 {[%clk 0:03:01]}  g6 {[%clk 0:02:57]} 3. e4 {[%clk 0:03:01]}  e5 {[%clk 0:02:57]} 4. Nf3 {[%clk 0:03:00]}  Nc6 {[%clk 0:02:53]} 5. d4 {[%clk 0:03:00]}  exd4 {[%clk 0:02:53]} 6. Nxd4 {[%clk 0:03:01]}  Nxd4 {[%clk 0:02:53]} 7. Qxd4 {[%clk 0:03:01]}  Bg7 {[%clk 0:02:41]} 8. e5 {[%clk 0:03:00]}  Ng8 {[%clk 0:02:41]} 9. Be2 {[%clk 0:02:54]}  d6 {[%clk 0:02:28]} 10. O-O {[%clk 0:02:21]}  Bxe5 {[%clk 0:02:05]} 11. Qe3 {[%clk 0:02:16]}  Ne7 {[%clk 0:01:52]} 12. f4 {[%clk 0:02:03]}  Bg7 {[%clk 0:01:47]} 13. Nd5 {[%clk 0:02:00]}  c6 {[%clk 0:01:42]} 14. Nxe7 {[%clk 0:01:43]}  Qxe7 {[%clk 0:01:43]} 15. Qf2 {[%clk 0:01:41]}  O-O {[%clk 0:01:40]} 16. Bd3 {[%clk 0:01:41]}  Qf6 {[%clk 0:01:35]} 17. f5 {[%clk 0:01:40]}  Bxf5 {[%clk 0:01:25]} 18. Bxf5 {[%clk 0:01:40]}  Qxf5 {[%clk 0:01:25]} 19. Qxf5 {[%clk 0:01:40]}  gxf5 {[%clk 0:01:26]} 20. Rxf5 {[%clk 0:01:37]}  Rfe8 {[%clk 0:01:23]} 21. Kf1 {[%clk 0:01:38]}  Re4 {[%clk 0:01:22]} 22. Rf4 {[%clk 0:01:38]}  Rae8 {[%clk 0:01:15]} 23. Kf2 {[%clk 0:01:39]}  Re2+ {[%clk 0:00:58]} 24. Kf3 {[%clk 0:01:31]}  Re1 {[%clk 0:00:57]} 25. Rg4 {[%clk 0:01:22]}  f5 {[%clk 0:00:56]} 26. Rg5 {[%clk 0:01:22]}  Rf1+ {[%clk 0:00:53]} 27. Kg3 {[%clk 0:01:22]}  Ree1 {[%clk 0:00:52]} 28. Bd2 {[%clk 0:01:15]}  Rxa1 {[%clk 0:00:17]} 29. Bc3 {[%clk 0:01:14]}  Rad1 {[%clk 0:00:15]} 30. Rxg7+ {[%clk 0:01:13]}  Kf8 {[%clk 0:00:16]} 31. Rxb7 {[%clk 0:01:08]}  Rd3+ {[%clk 0:00:16]} 32. Kh4 {[%clk 0:01:08]}  Rf2 {[%clk 0:00:16]} 33. Kg5 {[%clk 0:00:57]}  Rxg2+ {[%clk 0:00:16]} 34. Kxf5 {[%clk 0:00:57]}  Rf3+ {[%clk 0:00:15]} 35. Ke4 {[%clk 0:00:58]}  Rh3 {[%clk 0:00:12]} 36. Rxa7 {[%clk 0:00:54]}  Re2+ {[%clk 0:00:11]} 37. Kf4 {[%clk 0:00:51]}  Rexh2 {[%clk 0:00:11]} 38. a4 {[%clk 0:00:43]}  Rf2+ {[%clk 0:00:11]} 39. Ke4 {[%clk 0:00:42]}  Rh4+ {[%clk 0:00:10]} 40. Ke3 {[%clk 0:00:40]}  Rf7 {[%clk 0:00:11]} 41. Ra8+ {[%clk 0:00:38]}  Ke7 {[%clk 0:00:11]} 42. c5 {[%clk 0:00:33]}  d5 {[%clk 0:00:08]} 43. a5 {[%clk 0:00:33]}  Re4+ {[%clk 0:00:06]} 44. Kd2 {[%clk 0:00:25]}  Rf2+ {[%clk 0:00:06]} 45. Kd3 {[%clk 0:00:25]}  Rf3+ {[%clk 0:00:06]} 46. Kc2 {[%clk 0:00:25]}  d4 {[%clk 0:00:07]} 47. Bd2 {[%clk 0:00:25]}  Re2 {[%clk 0:00:05]} 48. Ra7+ {[%clk 0:00:11]}  Ke6 {[%clk 0:00:04]} 49. Ra8 {[%clk 0:00:12]}  Kd5 {[%clk 0:00:02]} 50. Rd8+ {[%clk 0:00:06]}  Kc4 {[%clk 0:00:02]} 51. a6 {[%clk 0:00:04]}  Rff2 {[%clk 0:00:02]} 52. b3+ {[%clk 0:00:04]}  Kb5 {[%clk 0:00:00]} 53. Rxd4 {[%clk 0:00:05]} 1-0

[Event "January 9 Late 2024"]
[Site "https://www.chess.com"]
[Date "2024.01.09"]
[Round "11"]
[White "Krzyzanowski, Marcin"]
[Black "Paravyan, David"]
[Result "0-1"]
[Board "16"]
[TimeControl "180+1"]
[WhiteFideId "1132199"]
[BlackFideId "4194985"]
[WhiteElo "2798"]
[BlackElo "3006"]
[WhiteTeam "POL"]
[BlackTeam "FID"]
[WhiteClock "0:00:34"]
[BlackClock "0:01:43"]

1. e4 {[%clk 0:03:00]}  e5 {[%clk 0:03:00]} 2. Nf3 {[%clk 0:03:00]}  Nf6 {[%clk 0:03:00]} 3. d4 {[%clk 0:02:58]}  Nxe4 {[%clk 0:03:00]} 4. Bd3 {[%clk 0:02:58]}  d5 {[%clk 0:03:00]} 5. Nxe5 {[%clk 0:02:58]}  Nd7 {[%clk 0:02:58]} 6. Nxd7 {[%clk 0:02:58]}  Bxd7 {[%clk 0:02:59]} 7. Nc3 {[%clk 0:02:59]}  Qh4 {[%clk 0:02:58]} 8. Be3 {[%clk 0:02:43]}  Nxc3 {[%clk 0:02:54]} 9. bxc3 {[%clk 0:02:44]}  Bd6 {[%clk 0:02:54]} 10. h3 {[%clk 0:02:42]}  O-O-O {[%clk 0:02:54]} 11. Qf3 {[%clk 0:02:41]}  Kb8 {[%clk 0:02:39]} 12. Rb1 {[%clk 0:02:41]}  b6 {[%clk 0:02:38]} 13. Qxd5 {[%clk 0:02:36]}  Rhe8 {[%clk 0:02:34]} 14. Ba6 {[%clk 0:02:08]}  Rxe3+ {[%clk 0:02:17]} 15. Kf1 {[%clk 0:02:08]}  Qe4 {[%clk 0:02:17]} 16. Qb3 {[%clk 0:01:06]}  Bc6 {[%clk 0:02:08]} 17. Rg1 {[%clk 0:00:56]}  Re8 {[%clk 0:01:52]} 18. fxe3 {[%clk 0:00:43]}  Qxe3 {[%clk 0:01:53]} 19. Qxf7 {[%clk 0:00:34]}  Bg3 {[%clk 0:01:43]} 0-1

[Event "January 9 Late 2024"]
[Site "https://www.chess.com"]
[Date "2024.01.09"]
[Round "11"]
[White "Martinez Alcantara, Jose Eduardo"]
[Black "Badmatsyrenov, Oleg"]
[Result "1-0"]
[Board "17"]
[TimeControl "180+1"]
[WhiteFideId "3805662"]
[BlackFideId "24115762"]
[WhiteElo "3001"]
[BlackElo "2810"]
[WhiteTeam "PER"]
[BlackTeam "FID"]
[WhiteClock "0:02:03"]
[BlackClock "0:00:08"]

1. a3 {[%clk 0:02:53]}  g6 {[%clk 0:02:59]} 2. h3 {[%clk 0:02:54]}  Bg7 {[%clk 0:02:59]} 3. c3 {[%clk 0:02:55]}  Nf6 {[%clk 0:02:59]} 4. d4 {[%clk 0:02:56]}  O-O {[%clk 0:02:59]} 5. Bf4 {[%clk 0:02:57]}  d6 {[%clk 0:02:58]} 6. Nf3 {[%clk 0:02:57]}  b6 {[%clk 0:02:59]} 7. Bh2 {[%clk 0:02:58]}  Bb7 {[%clk 0:02:59]} 8. e3 {[%clk 0:02:59]}  Nbd7 {[%clk 0:02:59]} 9. Be2 {[%clk 0:03:00]}  Ne4 {[%clk 0:02:59]} 10. O-O {[%clk 0:03:00]}  a5 {[%clk 0:02:57]} 11. Nbd2 {[%clk 0:03:00]}  Nxd2 {[%clk 0:02:57]} 12. Nxd2 {[%clk 0:03:01]}  e5 {[%clk 0:02:55]} 13. Bf3 {[%clk 0:03:01]}  Qc8 {[%clk 0:02:54]} 14. a4 {[%clk 0:02:56]}  Re8 {[%clk 0:02:53]} 15. Rc1 {[%clk 0:02:56]}  h5 {[%clk 0:02:40]} 16. Nb1 {[%clk 0:02:53]}  h4 {[%clk 0:02:32]} 17. Na3 {[%clk 0:02:52]}  Bf6 {[%clk 0:02:19]} 18. Nb5 {[%clk 0:02:52]}  Kg7 {[%clk 0:02:12]} 19. Bg4 {[%clk 0:02:50]}  Qd8 {[%clk 0:02:02]} 20. Bf3 {[%clk 0:02:43]}  Bxf3 {[%clk 0:01:54]} 21. Qxf3 {[%clk 0:02:43]}  e4 {[%clk 0:01:54]} 22. Qe2 {[%clk 0:02:42]}  Nf8 {[%clk 0:01:49]} 23. Qc4 {[%clk 0:02:42]}  Ne6 {[%clk 0:01:41]} 24. Qc6 {[%clk 0:02:42]}  Rc8 {[%clk 0:01:36]} 25. b4 {[%clk 0:02:41]}  Ng5 {[%clk 0:01:31]} 26. Bf4 {[%clk 0:02:27]}  Ne6 {[%clk 0:01:23]} 27. Bh2 {[%clk 0:02:26]}  Ng5 {[%clk 0:01:23]} 28. bxa5 {[%clk 0:02:27]}  bxa5 {[%clk 0:01:23]} 29. c4 {[%clk 0:02:12]}  Qe7 {[%clk 0:01:23]} 30. Kh1 {[%clk 0:02:10]}  Qe6 {[%clk 0:01:20]} 31. Nxc7 {[%clk 0:02:07]}  Rxc7 {[%clk 0:00:47]} 32. Qxc7 {[%clk 0:02:07]}  Be7 {[%clk 0:00:42]} 33. c5 {[%clk 0:02:07]}  Nxh3 {[%clk 0:00:26]} 34. cxd6 {[%clk 0:02:04]}  Bf6 {[%clk 0:00:18]} 35. d7 {[%clk 0:02:03]}  Rd8 {[%clk 0:00:19]} 36. Rc6 {[%clk 0:02:03]}  Qf5 {[%clk 0:00:11]} 37. Rxf6 {[%clk 0:02:03]}  Qxf6 {[%clk 0:00:08]} 38. Be5 {[%clk 0:02:03]} 1-0

[Event "January 9 Late 2024"]
[Site "https://www.chess.com"]
[Date "2024.01.09"]
[Round "11"]
[White "Tarhan, Adar"]
[Black "Sanal, Vahap"]
[Result "0-1"]
[Board "20"]
[TimeControl "180+1"]
[WhiteFideId "34544712"]
[BlackFideId "6300545"]
[WhiteElo "2723"]
[BlackElo "2926"]
[WhiteTeam "TUR"]
[BlackTeam "TUR"]
[WhiteClock "0:00:02"]
[BlackClock "0:01:46"]

1. Nf3 {[%clk 0:03:00]}  c5 {[%clk 0:02:54]} 2. g3 {[%clk 0:03:00]}  Nc6 {[%clk 0:02:53]} 3. Bg2 {[%clk 0:03:00]}  Nf6 {[%clk 0:02:53]} 4. O-O {[%clk 0:03:00]}  g6 {[%clk 0:02:53]} 5. c4 {[%clk 0:03:00]}  Bg7 {[%clk 0:02:54]} 6. Nc3 {[%clk 0:03:01]}  O-O {[%clk 0:02:53]} 7. b3 {[%clk 0:02:58]}  d5 {[%clk 0:02:50]} 8. Bb2 {[%clk 0:02:48]}  d4 {[%clk 0:02:49]} 9. Na4 {[%clk 0:02:47]}  Qd6 {[%clk 0:02:48]} 10. e3 {[%clk 0:02:37]}  e5 {[%clk 0:02:46]} 11. exd4 {[%clk 0:02:37]}  exd4 {[%clk 0:02:45]} 12. Re1 {[%clk 0:02:34]}  b6 {[%clk 0:02:35]} 13. d3 {[%clk 0:02:09]}  Bd7 {[%clk 0:02:28]} 14. Bc1 {[%clk 0:02:08]}  Rfe8 {[%clk 0:02:21]} 15. Bf4 {[%clk 0:02:07]}  Qf8 {[%clk 0:02:22]} 16. Qd2 {[%clk 0:02:04]}  Nh5 {[%clk 0:02:15]} 17. Ng5 {[%clk 0:01:40]}  Rad8 {[%clk 0:02:04]} 18. Bd5 {[%clk 0:01:18]}  Nxf4 {[%clk 0:01:54]} 19. Qxf4 {[%clk 0:00:47]}  Ne5 {[%clk 0:01:53]} 20. Qh4 {[%clk 0:00:19]}  h6 {[%clk 0:01:51]} 21. Rxe5 {[%clk 0:00:17]}  Rxe5 {[%clk 0:01:51]} 22. Nxf7 {[%clk 0:00:15]}  Rxd5 {[%clk 0:01:51]} 23. Nxd8 {[%clk 0:00:14]}  Rh5 {[%clk 0:01:52]} 24. Qe4 {[%clk 0:00:11]}  Qxd8 {[%clk 0:01:50]} 25. Qxg6 {[%clk 0:00:11]}  Be8 {[%clk 0:01:50]} 26. Qe6+ {[%clk 0:00:11]}  Bf7 {[%clk 0:01:50]} 27. Qg4 {[%clk 0:00:12]}  Rg5 {[%clk 0:01:50]} 28. Qf3 {[%clk 0:00:11]}  Bh5 {[%clk 0:01:47]} 29. Qg2 {[%clk 0:00:10]}  Qf6 {[%clk 0:01:47]} 30. Re1 {[%clk 0:00:10]}  Bf3 {[%clk 0:01:47]} 31. Qh3 {[%clk 0:00:08]}  Re5 {[%clk 0:01:48]} 32. Qc8+ {[%clk 0:00:07]}  Kh7 {[%clk 0:01:46]} 33. Re2 {[%clk 0:00:02]} 0-1

[Event "January 9 Late 2024"]
[Site "https://www.chess.com"]
[Date "2024.01.09"]
[Round "11"]
[White "Ibarra Jerez, Jose Carlos"]
[Black "Yuan, Qingyu"]
[Result "0-1"]
[Board "21"]
[TimeControl "180+1"]
[WhiteFideId "2226332"]
[BlackFideId "8609772"]
[WhiteElo "2926"]
[BlackElo "2754"]
[WhiteTeam "ESP"]
[BlackTeam "CHN"]
[WhiteClock "0:00:02"]
[BlackClock "0:00:08"]

1. e4 {[%clk 0:03:00]}  c6 {[%clk 0:03:00]} 2. d4 {[%clk 0:02:56]}  d5 {[%clk 0:03:00]} 3. Nc3 {[%clk 0:02:57]}  dxe4 {[%clk 0:03:01]} 4. Nxe4 {[%clk 0:02:58]}  Nf6 {[%clk 0:03:01]} 5. Nxf6+ {[%clk 0:02:58]}  exf6 {[%clk 0:03:02]} 6. c3 {[%clk 0:02:57]}  Bd6 {[%clk 0:03:03]} 7. Bd3 {[%clk 0:02:58]}  O-O {[%clk 0:03:03]} 8. Qc2 {[%clk 0:02:57]}  Re8+ {[%clk 0:03:03]} 9. Ne2 {[%clk 0:02:58]}  h5 {[%clk 0:03:04]} 10. O-O {[%clk 0:02:58]}  h4 {[%clk 0:03:04]} 11. Nf4 {[%clk 0:02:58]}  Qc7 {[%clk 0:02:52]} 12. g3 {[%clk 0:02:45]}  Nd7 {[%clk 0:02:51]} 13. Qd1 {[%clk 0:02:40]}  Nf8 {[%clk 0:02:22]} 14. Qh5 {[%clk 0:02:37]}  Qd7 {[%clk 0:02:13]} 15. Bc4 {[%clk 0:01:52]}  Re7 {[%clk 0:02:12]} 16. Bd2 {[%clk 0:01:11]}  hxg3 {[%clk 0:01:50]} 17. hxg3 {[%clk 0:01:10]}  Qg4 {[%clk 0:01:46]} 18. Rfe1 {[%clk 0:00:59]}  Qxh5 {[%clk 0:01:35]} 19. Nxh5 {[%clk 0:00:59]}  Be6 {[%clk 0:01:02]} 20. Bb3 {[%clk 0:00:55]}  Rae8 {[%clk 0:01:01]} 21. Nf4 {[%clk 0:00:52]}  Bf5 {[%clk 0:00:46]} 22. Rxe7 {[%clk 0:00:46]}  Rxe7 {[%clk 0:00:46]} 23. Bc4 {[%clk 0:00:46]}  g6 {[%clk 0:00:44]} 24. f3 {[%clk 0:00:39]}  Ne6 {[%clk 0:00:38]} 25. Ne2 {[%clk 0:00:30]}  Ng5 {[%clk 0:00:31]} 26. Kf2 {[%clk 0:00:30]}  Kg7 {[%clk 0:00:29]} 27. g4 {[%clk 0:00:29]}  Be6 {[%clk 0:00:28]} 28. Bd3 {[%clk 0:00:28]}  Bd7 {[%clk 0:00:18]} 29. Rh1 {[%clk 0:00:22]}  b5 {[%clk 0:00:17]} 30. Ng3 {[%clk 0:00:20]}  Re8 {[%clk 0:00:13]} 31. f4 {[%clk 0:00:20]}  Ne6 {[%clk 0:00:12]} 32. Kf3 {[%clk 0:00:16]}  c5 {[%clk 0:00:12]} 33. d5 {[%clk 0:00:14]}  Nc7 {[%clk 0:00:10]} 34. Ne4 {[%clk 0:00:11]}  Bf8 {[%clk 0:00:07]} 35. d6 {[%clk 0:00:09]}  Nd5 {[%clk 0:00:05]} 36. c4 {[%clk 0:00:06]}  bxc4 {[%clk 0:00:05]} 37. Bxc4 {[%clk 0:00:07]}  Bc6 {[%clk 0:00:05]} 38. f5 {[%clk 0:00:05]}  Rxe4 {[%clk 0:00:04]} 39. Bh6+ {[%clk 0:00:03]}  Kg8 {[%clk 0:00:03]} 40. Kxe4 {[%clk 0:00:03]}  Nb6+ {[%clk 0:00:03]} 41. Kd3 {[%clk 0:00:02]}  Bxh1 {[%clk 0:00:03]} 42. Bxf8 {[%clk 0:00:02]}  Kxf8 {[%clk 0:00:04]} 43. fxg6 {[%clk 0:00:02]}  fxg6 {[%clk 0:00:05]} 44. Be6 {[%clk 0:00:03]}  Bc6 {[%clk 0:00:05]} 45. Kc3 {[%clk 0:00:02]}  Kg7 {[%clk 0:00:05]} 46. b4 {[%clk 0:00:02]}  cxb4+ {[%clk 0:00:05]} 47. Kxb4 {[%clk 0:00:02]}  Bd7 {[%clk 0:00:04]} 48. Bxd7 {[%clk 0:00:02]}  Nxd7 {[%clk 0:00:05]} 49. Kb5 {[%clk 0:00:03]}  Kf7 {[%clk 0:00:06]} 50. Ka6 {[%clk 0:00:03]}  Ke6 {[%clk 0:00:06]} 51. Kxa7 {[%clk 0:00:04]}  Kxd6 {[%clk 0:00:07]} 52. Kb7 {[%clk 0:00:05]}  f5 {[%clk 0:00:07]} 53. gxf5 {[%clk 0:00:05]}  gxf5 {[%clk 0:00:08]} 54. a4 {[%clk 0:00:02]}  Nc5+ {[%clk 0:00:08]} 0-1